Cogmind - Beta 10.1 @@@ ROGUE MODE // 2020.10.05 @ 23:34:21 Player: Aprion27 Result: Destroyed by G-34 Mercenary with Small Laser Performance ------------- Evolutions (1) 500 Regions Visited (2) 400 Robots Destroyed (8) 40 Value Destroyed (128) 128 Prototype IDs (0) 0 Alien Tech Used (0) 0 Bonus (0) 0 TOTAL SCORE: 1068 Bonus ------- None Cogmind --------- Core Integrity 0/400 Matter 300/300 Energy 73/100 System Corruption 0% Temperature Cool (6) Movement Core (50) Location -9/Materials Parts ------- > --- POWER (1) -------- (None) > --- PROPULSION (2) --- (None) > --- UTILITY (4) ------ Seismic Analyzer > --- WEAPON (2) ------- (None) > --- INVENTORY (4) ---- (None) Peak State ------------ > --- POWER ------------ Ion Engine > --- PROPULSION ------- Light Treads Light Treads > --- UTILITY ---------- Improved Terrain Scanner Seismic Analyzer > --- WEAPON ----------- Light Assault Rifle Light Assault Rifle > --- INVENTORY -------- Medium Laser [Rating: 8] Favorites ----------- Power Ion Engine Engine Ion Engine Propulsion Light Treads Treads Light Treads Wheel Wheel Flight Unit Flight Unit Utility Seismic Analyzer Device Improved Terrain Scanner Processor Seismic Analyzer Weapon Light Assault Rifle Energy Gun Medium Laser Ballistic Gun Light Assault Rifle Build | -11 -10 -9 ------- Run | Scr Mat Mat Slots Evolved 2 | . . 2 Power . | . . . Propulsion . | . . . Utility 2 | . . 2 Weapon . | . . . Parts Attached 15 | 8 1 6 Power 1 | 1 . . Engine 1 | 1 . . Core . | . . . Reactor . | . . . Propulsion 8 | 2 1 5 Treads 4 | 2 . 2 Leg . | . . . Wheel 1 | . 1 . Hover . | . . . Flight 3 | . . 3 Utility 2 | 2 . . Device 1 | 1 . . Storage . | . . . Processor 1 | 1 . . Hackware . | . . . Protection . | . . . Artifact . | . . . Weapon 4 | 3 . 1 Energy Gun 2 | 1 . 1 Energy Cannon . | . . . Ballistic Gun 2 | 2 . . Ballistic Cannon . | . . . Launcher . | . . . Special Weapon . | . . . Impact Weapon . | . . . Slashing Weapon . | . . . Piercing Weapon . | . . . Special Melee Weapon . | . . . Unidentified Prototypes . | . . . Parts Lost 10 | . 1 9 Power 1 | . . 1 Propulsion 5 | . . 5 Utility 1 | . 1 . Weapon 3 | . . 3 Highest Loss Streak 9 | . 1 9 Average Slot Usage (%) 68 | . 96 44 Engine 9 | . 14 6 Treads 12 | . 24 2 Wheel 4 | . 1 7 Flight 1 | . . 2 Device 6 | . 14 . Processor 12 | . 14 11 Ballistic Gun 20 | . 28 13 Naked Turns . | . . . Heaviest Build 8 | 8 8 7 Greatest Support 40 | 40 40 40 Greatest Overweight (x) 2 | . 2 . Average Overweight (x) . | . . . Largest Inventory Capacity 4 | 4 4 4 Average Capacity 4 | 4 4 4 Most Carried 3 | 1 3 3 Average Carried 1 | . 1 2 Final Capacity 4 | 4 4 4 Final Carried 3 | 1 3 . Class Distribution -------------------- 100% | Mutant Dominant Class ---------------- Mutant | -10/Materials Mutant | -9/Materials Resources | -11 -10 -9 ----------- Run | Scr Mat Mat Matter Collected 348 | 299 . 49 Remotely . | . . . Salvage Created 244 | 166 . 78 Parts 16 | 9 . 7 Haulers Intercepted . | . . . Recyclers Shooed 1 | 1 . . Parts Field Recycled . | . . . Retrieved Matter . | . . . Parts Self-Destructed . | . . . Prevented . | . . . Kills | -11 -10 -9 ------- Run | Scr Mat Mat Combat Hostiles Destroyed 4 | . . 4 Melee 2 | . . 2 Guns 2 | . . 2 Classes Destroyed 4 | 2 . 2 Tunneler 3 | 3 . . Recycler 1 | 1 . . Swarmer 2 | . . 2 Grunt 2 | . . 2 Best Kill Streak 4 | 4 . 2 Combat Bots Only 2 | . . 2 Max Kills in Single Turn 1 | 1 . 1 Gunslinging . | . . . Exploded . | . . . Melee 1 | . . 1 Uniques/NPCs Destroyed . | . . . Combat | -11 -10 -9 -------- Run | Scr Mat Mat Damage Taken 1068 | . 50 1018 Core 405 | . . 405 Absorbed by Shields . | . . . Core Remaining (%) 100 | 100 100 . Volleys Fired 21 | 16 1 4 Largest 2 | 2 2 2 Hottest 40 | 40 40 40 Shots Fired 40 | 32 2 6 Gun 40 | 32 2 6 Cannon . | . . . Launcher . | . . . Special . | . . . Kinetic 40 | 32 2 6 Thermal . | . . . Explosive . | . . . Electromagnetic . | . . . Robot Hit Streak 7 | 7 . 5 Robot Miss Streak 2 | 2 2 1 Penetration Max . | . . . Secondary Targets . | . . . Shots Hit Robots 24 | 19 . 5 Core Hits 14 | 8 . 6 Critical Hits . | . . . Critical Kills . | . . . Critical Parts Destroyed . | . . . Melee Attacks . | . . . Impact . | . . . Slashing . | . . . Piercing . | . . . Sneak Attacks . | . . . Combat Hostiles . | . . . Follow-up Attacks . | . . . Damage Inflicted 228 | 152 . 76 Guns 196 | 152 . 44 Cannons . | . . . Explosions . | . . . Melee . | . . . Ramming 32 | . . 32 Kinetic 196 | 152 . 44 Thermal . | . . . Explosive . | . . . Electromagnetic . | . . . Impact . | . . . Slashing . | . . . Piercing . | . . . Highest Corruption . | . . . Average Corruption . | . . . Corruption Purged . | . . . Overload Shots . | . . . Overflow Damage . | . . . Projectiles . | . . . Explosions . | . . . Melee . | . . . Knockbacks . | . . . Impact . | . . . Kinetic . | . . . Secondary . | . . . Self-Inflicted Damage 11 | . . 11 Shots . | . . . Rammed 17 | . . 17 Targets Rammed 18 | . . 18 Kicked . | . . . Crushed 1 | . . 1 Highest Temperature 6 | . . 6 Average Temperature 3 | . . 3 Received Heat Transfer 261 | . . 261 Siege Activations . | . . . Robots Corrupted . | . . . Combat Hostiles . | . . . Parts Fried . | . . . Impact Corruptions . | . . . Robots Melted . | . . . Combat Hostiles . | . . . Parts Melted . | . . . Heat Transferred . | . . . Parts Sabotaged . | . . . Parts Stolen . | . . . Parts Stripped . | . . . Power Chain Reactions . | . . . Missiles Intercepted . | . . . Alert | -11 -10 -9 ------- Run | Scr Mat Mat Peak Influence 56 | 20 15 56 Initial 1 | . . 1 Average 12 | 15 . 15 Maximum Alert Level . | . . . Low Security (%) 100 | 100 100 100 Level 1 . | . . . Level 2 . | . . . Level 3 . | . . . Level 4 . | . . . Level 5 . | . . . High Security . | . . . Max Security . | . . . Squads Dispatched 1 | . 1 . Investigation . | . . . Extermination . | . . . Reinforcement 1 | . 1 . Assault . | . . . Garrison . | . . . Intercept . | . . . Construction Impeded . | . . . Haulers Reinforced . | . . . Stealth | -11 -10 -9 --------- Run | Scr Mat Mat Distress Signals 1 | . 1 . Communications Jammed . | . . . Distress Signals . | . . . Times Spotted 18 | . 3 15 Peak Tracking Total 10 | . 4 10 Tactical Retreats 1 | . . 1 Traps | -11 -10 -9 ------- Run | Scr Mat Mat Traps Triggered . | . . . Indirectly . | . . . Trap Hack Attempts . | . . . Triggered . | . . . Disarmed . | . . . Reprogrammed . | . . . Reused . | . . . Traps Extracted . | . . . Installed . | . . . Triggered . | . . . Machines | -11 -10 -9 ---------- Run | Scr Mat Mat Machines Disabled . | . . . Max in Single Turn . | . . . Machines Sabotaged . | . . . Garrisons Compromised . | . . . Overloaded Fab Kills . | . . . Fab Network Shutdowns . | . . . Hacking | -11 -10 -9 --------- Run | Scr Mat Mat Machines Accessed . | . . . Terminals . | . . . Fabricators . | . . . Repair Stations . | . . . Recycling Units . | . . . Scanalyzers . | . . . Garrison Access . | . . . Total Hacks . | . . . Successful . | . . . Failed . | . . . Catastrophic . | . . . Database Lockouts . | . . . Manual . | . . . Terminals . | . . . Fabricators . | . . . Repair Stations . | . . . Recycling Units . | . . . Scanalyzers . | . . . Garrison Access . | . . . Terminal Hacks . | . . . Fabricator Hacks . | . . . Repair Station Hacks . | . . . Recycling Unit Hacks . | . . . Scanalyzer . | . . . Garrison Access Hacks . | . . . Unauthorized Hacks . | . . . Terminals . | . . . Fabricators . | . . . Repair Stations . | . . . Recycling Units . | . . . Scanalyzers . | . . . Garrison Access . | . . . Data Cores Recovered . | . . . Used . | . . . Hacking Detections . | . . . Full Trace Events . | . . . Feedback Events . | . . . Feedback Blocked . | . . . Robot Schematics Acquired . | . . . Robots Built . | . . . Matter . | . . . Time . | . . . Total Robot Build Rating . | . . . Part Schematics Acquired . | . . . Parts Built . | . . . Matter . | . . . Time . | . . . Total Part Build Rating . | . . . Parts Repaired . | . . . Time . | . . . Parts Recycled . | . . . Recycled Matter . | . . . Retrieved Matter . | . . . Retrieved Components . | . . . Parts Scanalyzed . | . . . Part Schematics Acquired . | . . . Parts Damaged . | . . . Bothacking | -11 -10 -9 ------------ Run | Scr Mat Mat Used RIF Installer . | . . . Robots Hacked . | . . . Non-combat . | . . . Combat . | . . . Robot Hacks Applied . | . . . Relay Couplers Released . | . . . Robots Rewired . | . . . Allies Hacked . | . . . Hacks Repelled . | . . . Allies | -11 -10 -9 -------- Run | Scr Mat Mat Total Allies . | . . . Largest Group . | . . . Highest-Rated Group . | . . . Highest-Rated Ally . | . . . Total Orders . | . . . Ally Attacks . | . . . Total Damage . | . . . Kills . | . . . Allies Corrupted . | . . . Allies Melted . | . . . Intel | -11 -10 -9 ------- Run | Scr Mat Mat Robot Analysis Total . | . . . Derelict Logs Recovered . | . . . Drone Launches . | . . . Drone Recoveries . | . . . Exploration | -11 -10 -9 ------------- Run | Scr Mat Mat Turns Passed 707 | 401 147 159 Spaces Moved 338 | 80 97 161 Core 5 | 2 2 1 Treads 159 | 78 78 3 Legs . | . . . Wheels 135 | . 17 118 Hover . | . . . Flight 39 | . . 39 Fastest Speed 37 | 50 80 37 Average Speed 113 | 157 145 71 Slowest Speed 160 | 160 160 160 Overloaded Moves . | . . . Propulsion Burnouts . | . . . Robots Hopped 1 | . . 1 Cave-ins Triggered . | . . . Exploration Rate (%) 17 | 7 22 23 Regions Visited 2 Branch Regions . Pre-discovered Areas . | . . . Known Exits Taken . | . . . Unknown Exits Taken 2 | 1 1 . Scrap Searched . | . . . Spaces Dug . | . . . Terrain Destroyed . | . . . Melee . | . . . Projectile . | . . . AOE . | . . . Terrain Rammed . | . . . Walls Destroyed . | . . . Machines Disabled . | . . . Actions | -11 -10 -9 --------- Run | Scr Mat Mat Total 619 | 326 101 192 Wait 226 | 222 1 3 Move 334 | 79 96 159 Hop 1 | . . 1 Pick Up . | . . . Fast Attach 11 | 8 1 2 Attach 4 | . . 4 Detach 4 | 1 2 1 Swap . | . . . Drop . | . . . Fire 21 | 16 1 4 Melee . | . . . Ram 6 | . . 6 Kick . | . . . Crush 12 | . . 12 Escape Stasis . | . . . Rewire . | . . . Trap . | . . . Miscellaneous . | . . . Route ------- -11/Scrapyard -10/Materials -9/Materials History --------- Turn | Location | Event 18 | -11/Scrapyard | Discovered new exit (range 16) 402 | -11/Scrapyard | Entered Materials 403 | -10/Materials | Build established: Mutant 512 | -10/Materials | Discovered new exit (range 10) 549 | -10/Materials | Entered another Materials area 549 | -9/Materials | Evolved 2 slots: Utility x2 684 | -9/Materials | Core integrity fell below 50% 692 | -9/Materials | Core integrity fell below 20% 708 | -9/Materials | Destroyed by G-34 Mercenary with Small Laser Last Messages --------------- 00676_ Slammed into G-34 Mercenary. 00676_ Lgt. Treads destroyed. 00678_ Slammed into G-34 Mercenary. 00681_ Slammed into Y-45 Defender. 00681_ R-06 Scavenger collects Particle Gun. 00682_ Slammed into Y-45 Defender. 00684_ R-06 Scavenger collects Lgt. Ion Engine. 00685_ Lgt. Treads destroyed. 00686_ Slammed into Y-45 Defender. 00688_ Seismic Analyzer permanently disabled. 00688_ Destabilizing: Short circuit. 00688_ R-06 Scavenger collects Flight Unit. 00689_ Slammed into Y-45 Defender. 00691_ Acquired 3 matter. 00691_ Acquired 2 matter. 00692_ Acquired 5 matter. 00695_ Acquired Flight Unit. 00701_ Flight Unit destroyed. 00708_ Slammed into S-10 Pest. 00708_ S-10 Pest destroyed. Map ----- +----------------------------------------------------+ | "" # "" ## ######## ########### # | | # S"" ??# #??????# # #??# # | | ##+#### "" ??# #??????# + [ #??########## | | # ############+#??????# # #???????????? | | # ######?# # "T" #???????????? | | # / #! # #?""" /#???????????? | | / # """ # #? #???????????? | | "" # # """ + #??#####???????????? | | Y" # # """ # #??????????????????? | | "" ############## # #??????????????????? | | #???????????# ?# #??????????????????? | | #???????????######?# #??????????????????? | | #??????????????????# #??????????????????? | | #??????????????????# #??????????????????? | | #??????????????????# #??????????????????? | | #??????????????????# #??????????????????? | | ??????????????????# #??????????????????? | | ??????????????????# #??????????????????? | | ]]] "??????????????????# #??????????????????? | | ]]] ???????????????????# #??????????????????? | | ?]] ???????????????????# #??????????????????? | | ????????????????????????# #??????????????????? | | ????????????????????????# #??????????????????? | | ????????????????????????#s #??????????????????? | | ????????????????????????#* #??????????????????? | | ????????????????????????#@s#??????????????????? | | ????????????????????????#=%#??????????????????? | | ????????????????????????#gg#??????????????????? | | ???????????????????????? ??????????????????? | | ???????????????????????? ?????????????????? | | ???????????????????????? ????????????????? | | ????????????????????????#####+????????????????? | | ??????????????????????????????????????????????? | | ??????????????????????????????????????????????? | | ??????????????????????????????????????????????? | | ??????????????????????????????????????????????? | | ??????????????????????????????????????????????? | | ??????????????????????????????????????????????? | | ??????????????????????????????????????????????? | | ??????????????????????????????????????????????? | | ??????????????????????????????????????????????? | | ??????????????????????????????????????????????? | | ??????????????????????????????????????????????? | | ??????????????????????????????????????????????? | | ??????????????????????????????????????????????? | | ??????????????????????????????????????????????? | | ??????????????????????????????????????????????? | | ??????????????????????????????????????????????? | | ??????????????????????????????????????????????? | | ??????????????????????????????????????????????? | +----------------------------------------------------+ Best States ------------- Heat Dissipation 28 Energy Generation 10 Energy Capacity 250 Matter Stores 300 Matter Capacity 300 Sight Range 16 Terrain Scan Range 16 Terrain Scan Density 60 Evasion (%) 62 Recoil Reduction 2 Item Schematics ----------------- None Robot Schematics ------------------ None Fabricated ------------ Nothing Alien Tech Used ----------------- None Achievements -------------- None Challenges ------------ None Game ------ Seed RiotInsulatedMatrix Manual? 0 Play Time 00:08:56 Cumulative 67.3 hours Start 2020.10.05 @ 23:28:25 End 2020.10.05 @ 23:34:21 Sessions 1 Manual Loads 0 Difficulty Rogue Special Mode None Game No. 44 Rogue 44 Adventurer 0 Explorer 0 Win Type - Total 1 Types 1/0/0/0/0/0/0/0/0 Lore% 24 Gallery% 46 Achievement% 33 Wizard Run 0 Options --------- ASCII 0 Keyboard 1 Movement Numpad Keybinds 0 Fullscreen 1 Font 36/Smallcaps Map View 76x50 Tactical HUD 1 Map Filters NONE Filters NONE Steam 1 RUN: 1346e1b5-d112-4615-8223-59fc53585ec6